lending/lending_fUSD_20240926
["ID","MTS","AMOUNT","RATE_DAILY","PERIOD"]
[339210494,1727337032531,-3525.03969667,0.00012899,2]
[339210495,1727337032540,-669.71881771,0.00012899,3]
[339210496,1727337032552,-1073.20355242,0.00012899,3]
[339210497,1727337032561,-623.43985578,0.000129,2]
[339210498,1727337032576,-13115.76460994,0.000129,2]
[339210499,1727337032587,-712.8352503,0.000129,2]
[339210500,1727337032598,-413.47322908,0.000129,2]
[339210501,1727337032609,-4905.39043658,0.000129,2]
[339210502,1727337032620,-404.0,0.000129,2]
[339210503,1727337032631,-493.5770007,0.000129,2]
[339210504,1727337032643,-264.82796935,0.000129,2]
[339210505,1727337032654,-10458.17465037,0.000129,2]
[339210506,1727337032665,-12552.98142732,0.000129,2]
[339210507,1727337032676,-909.3594811,0.000129,2]
[339210508,1727337032686,-349.70936002,0.000129,2]
[339210509,1727337032699,-563.69998346,0.000129,2]
[339210510,1727337032710,-300.0,0.000129,2]
[339210514,1727337038179,-1537.30297559,0.000129,2]
[339210515,1727337038190,-6637.52463112,0.000129,2]
[339210517,1727337038239,-1323.56384653,0.000129,2]
[339210518,1727337038250,-443.13092382,0.000129,2]
[339210519,1727337038262,-54424.44962291,0.000129,2]
[339210520,1727337038276,-6385.54581517,0.000129,2]
[339210521,1727337038288,-1100.67125844,0.000129,2]
[339210522,1727337038300,-575.0,0.000129,2]
[339210523,1727337038396,-709.08266212,0.000129,2]
[339210524,1727337038451,-796.74365444,0.000129,2]
[339210525,1727337038463,-538.72382392,0.000129,2]
[339210526,1727337038478,-19932.1079245,0.000129,2]
[339210527,1727337038489,-326.45,0.000129,2]
[339210528,1727337038500,-542.99403541,0.000129,2]
[339210529,1727337038512,-550.73699071,0.000129,2]
[339210530,1727337038523,-4359.03,0.000129,2]
[339210531,1727337038534,-2234.28306925,0.000129,2]
[339210532,1727337038545,-28044.33900504,0.000129,2]
[339210533,1727337038556,-307.07755376,0.000129,2]
[339210534,1727337038568,-300.001004,0.000129,2]
[339210535,1727337038579,-469.45,0.000129,2]
[339210536,1727337038621,-666.4,0.000129,2]
[339210537,1727337038632,-6471.80564274,0.000129,2]
[339210538,1727337038643,-3725.39043297,0.000129,2]
[339210539,1727337038654,-10057.58,0.000129,2]
[339210540,1727337038666,-3861.57904239,0.000129,2]
[339210541,1727337038677,-23183.27718853,0.000129,2]
[339210542,1727337038688,-1043.64469996,0.000129,2]
[339210543,1727337038699,-515.28705452,0.000129,2]
[339210544,1727337038710,-1107.58937578,0.000129,2]
[339210545,1727337038737,-1028.40182445,0.000129,2]
[339210546,1727337038747,-2926.61459844,0.000129,2]
[339210547,1727337038758,-17744.68595375,0.000129,2]
[339210548,1727337038769,-4183.97458834,0.000129,2]
[339210557,1727337039950,-347.78074878,0.000129,2]
[339210558,1727337039961,-2544.08778353,0.000129,2]
[339210559,1727337039972,-503.4787228,0.000129,2]
[339210560,1727337039982,-6174.05112222,0.000129,2]
[339210561,1727337040008,-3593.08737091,0.000129,2]
[339210562,1727337040019,-1272.77759084,0.000129,2]
[339210563,1727337040030,-324.64804201,0.000129,2]
[339210564,1727337040041,-1079.800005,0.000129,2]
[339210565,1727337040064,-17049.04648691,0.000129,2]
[339210566,1727337040075,-322.85018007,0.000129,2]
[339210567,1727337040120,-416.47603396,0.000129,2]
[339210568,1727337040131,-5520.4318433,0.000129,2]
[339210569,1727337040176,-24104.6103854,0.000129,2]
[339210570,1727337040187,-310.14703584,0.000129,2]
[339210571,1727337040197,-307.46014093,0.000129,2]
[339210572,1727337040207,-1918.67262498,0.000129,2]
[339210577,1727337040377,-2833.72264,0.000129,2]
[339210579,1727337040388,-4021.55597981,0.000129,2]
[339210583,1727337040400,-540.18000005,0.000129,2]
[339210610,1727337043028,-27020.25076693,0.000129,2]
[339210611,1727337043039,-630.18302999,0.000129,2]
[339210612,1727337043083,-348415.34678073,0.000129,2]
[339210613,1727337043105,-632768.6832174,0.000129,2]
[339210614,1727337043118,-16513.05539984,0.000129,2]
[339210615,1727337043137,-935.898057,0.000129,2]
[339210616,1727337043148,-22234.19,0.000129,2]
[339210617,1727337043161,-1364.2199562,0.000129,2]
[339210618,1727337043172,-467.26632776,0.000129,2]
[339210619,1727337043245,-639.26,0.000129,2]
[339210620,1727337043256,-297.59077079,0.000129,2]
[339210621,1727337043298,-883.32723249,0.000129,2]
[339210622,1727337043309,-311.308985,0.000129,2]
[339210623,1727337043321,-3939.92439593,0.000129,2]
[339210624,1727337043353,-2694.80145435,0.000129,2]
[339210625,1727337043364,-6428.28499988,0.000129,2]
[339210626,1727337043408,-575693.99999957,0.000129,2]
[339210628,1727337046088,-2399.13198182,0.000129,2]
[339210629,1727337046142,-406400.88685,0.000129,2]
[339210630,1727337046249,-656.76733461,0.000129,2]
[339210631,1727337046262,-405.26015514,0.000129,2]
[339210632,1727337046304,-13587.62677203,0.000129,2]
[339210633,1727337046317,-357.26507167,0.000129,2]
[339210634,1727337046360,-1900.0,0.000129,2]
[339210635,1727337046372,-354.11893621,0.000129,2]
[339210636,1727337046417,-608.35712949,0.000129,2]
[339210637,1727337046477,-695.19249147,0.000129,2]
[339210641,1727337138140,150.0,0.0001389,30]
[339210644,1727337420074,488.12,9.907e-05,2]
[339210645,1727337439638,298.92,0.00010959,2]
[339210646,1727337631344,150.0,0.00017052,120]
[339210665,1727337750827,150.0,0.00018131,120]
[339210666,1727337756258,150.0,0.0001389,30]
[339210667,1727337870815,150.0,0.00015148,120]
[339210668,1727337931531,150.0,0.0001551,120]
[339210671,1727338007970,463.71,9.946e-05,2]
[339210672,1727338027008,222.56,0.00010959,2]
[339210673,1727338083577,1050.0,0.00011,2]
[339210674,1727338110806,150.0,0.00013623,120]
[339210676,1727338170789,150.0,0.00019667,120]
[339210681,1727338232219,-250.0,0.00011745,2]
[339210682,1727338232228,-327.08950482,0.00011745,2]
[339210683,1727338232239,-672.91049518,0.00011745,2]
[339210684,1727338232249,-166.03,0.00011772,2]
[339210685,1727338232259,-189.44,0.00011832,2]
[339210686,1727338232268,-60.9470475,0.00011859,2]
[339210687,1727338232279,-189.0529525,0.00011859,2]
[339210688,1727338232288,-379.3670475,0.000119,4]
[339210689,1727338232299,-220.6329525,0.000119,4]
[339210690,1727338232308,-590.42374363,0.00012,4]
[339210691,1727338232319,-337.36323209,0.00012,4]
[339210692,1727338232330,-272.21302428,0.00012,4]
[339210693,1727338232339,-1800.0,0.000121,4]
[339210694,1727338232349,-2500.0,0.000122,4]
[339210695,1727338232359,-338.71690694,0.0001221,2]
[339210696,1727338232370,-124.99309306,0.0001221,2]
[339210697,1727338232380,-499.99,0.00012299,2]
[339210698,1727338232389,-3100.0,0.000123,4]
[339210699,1727338232399,-600.0,0.000124,4]
[339210700,1727338232409,-300.59985944,0.00012463,7]
[339210701,1727338232420,-298.25294,0.00012463,7]
[339210702,1727338232431,-1308.0,0.00012463,7]
[339210703,1727338232443,-5848.14720056,0.00012463,7]
[339210704,1727338232452,-600.0,0.000125,4]
[339210705,1727338232462,-600.0,0.000126,4]
[339210706,1727338232471,-600.0,0.000127,4]
[339210707,1727338232481,-1145.306,0.0001271,2]
[339210708,1727338232489,-1080.0,0.0001271,2]
[339210709,1727338232499,-52091.15334549,0.00012799,2]
[339210710,1727338232510,-479.57301165,0.00012799,2]
[339210714,1727338238518,-394.355,0.00012799,2]
[339210715,1727338238531,-304.07671741,0.00012799,2]
[339210716,1727338238542,-1068.87011896,0.00012799,2]
[339210717,1727338238657,-1939.80159629,0.00012799,2]
[339210727,1727338240183,-4966.3498102,0.00012799,2]
[339210728,1727338240192,-299.2524,0.000128,2]
[339210729,1727338240202,-2064.8637,0.000128,2]
[339210730,1727338240211,-1000.0,0.000128,4]
[339210731,1727338240221,-508.33685357,0.000128,2]
[339210732,1727338240230,-508.33685354,0.00012811,2]
[339210733,1727338240239,-150.0,0.0001282,2]
[339210734,1727338240249,-508.33685354,0.00012822,2]
[339210735,1727338240258,-508.33685354,0.00012833,2]
[339210736,1727338240268,-508.33685354,0.00012844,2]
[339210737,1727338240277,-508.33685354,0.00012856,2]
[339210738,1727338240286,-184.302,0.00012856,2]
[339210739,1727338240296,-508.33685354,0.00012867,2]
[339210740,1727338240305,-508.33685354,0.00012878,2]
[339210741,1727338240315,-1005.0,0.0001288,2]
[339210742,1727338240324,-1000.0,0.0001288,3]
[339210743,1727338240334,-1000.0,0.0001288,3]
[339210744,1727338240345,-428.61480834,0.0001288,2]
[339210745,1727338240356,-571.38519166,0.0001288,2]
[339210746,1727338240366,-540.1534543,0.0001288,2]
[339210747,1727338240377,-459.8465457,0.0001288,2]
[339210748,1727338240386,-103.4634543,0.00012889,2]
[339210749,1727338240405,-250.24076607,0.00012889,2]
[339210750,1727338240416,-154.63263317,0.00012889,2]
[339210751,1727338240425,-504.42084041,0.00012895,2]
[339210752,1727338240436,-319.85410664,0.00012895,2]
[339210753,1727338240447,-2847.11698804,0.00012895,2]
[339210754,1727338240457,-735.24402019,0.00012895,2]
[339210755,1727338240468,-960.57829792,0.00012895,2]
[339210756,1727338240478,-1253.1005991,0.00012895,2]
[339210757,1727338240487,-392.2560126,0.00012895,2]
[339210758,1727338240497,-12137.19370588,0.000129,2]
[339210769,1727338243445,-347.337,0.0001278,2]
[339210770,1727338243455,-342.15065475,0.000129,2]
[339210771,1727338243469,-643.22130951,0.000129,2]
[339210774,1727338246343,-659.27499999,0.000129,2]
[339210775,1727338246450,-33147.27478631,0.000129,2]
[339210776,1727338246463,-637.99,0.000129,2]
[339210778,1727338292211,150.0,0.0001389,30]
[339210779,1727338350807,150.0,0.00015664,120]
[339210780,1727338410805,150.0,0.00019736,120]
[339210781,1727338608166,161.85,0.00010959,2]
[339210782,1727338831141,150.0,0.00016749,120]
[339210783,1727338867723,150.0,0.0001389,30]
[339210784,1727338879935,417.33,9.678e-05,2]
[339210785,1727338890819,150.0,0.00016468,120]
[339210790,1727339190838,150.0,0.00018276,120]
[339210791,1727339213583,154.26,0.00010959,2]
[339210792,1727339250772,150.0,0.00017637,120]
[339210793,1727339310847,150.0,0.00020621,120]
[339210797,1727339428592,150.0,0.0001389,30]
[339210807,1727339431382,-250.0,0.00011543,2]
[339210808,1727339431392,-50.0,0.00011543,2]
[339210809,1727339431403,-101.55,0.00011543,2]
[339210810,1727339431414,-2016.72333648,0.00011543,2]
[339210811,1727339431425,-1757.76879465,0.00011543,2]
[339210812,1727339431440,-1054.40786887,0.00011543,2]
[339210813,1727339431450,-250.0,0.00011549,2]
[339210814,1727339431459,-250.0,0.00011559,2]
[339210815,1727339431469,-179.07,0.00011587,2]
[339210816,1727339431478,-1000.0,0.00011596,2]
[339210817,1727339431487,-254.95,0.00011626,2]
[339210818,1727339431496,-2017.01,0.00011642,2]
[339210819,1727339431508,-138.31,0.00011642,2]
[339210820,1727339431518,-163.51,0.00011779,2]
[339210821,1727339431528,-200.0,0.000119,4]
[339210822,1727339431538,-37.77,0.00011942,2]
[339210823,1727339431552,-379.56,0.00011942,2]
[339210824,1727339431563,-500.0,0.00012,4]
[339210825,1727339431572,-156.27,0.00012003,2]
[339210826,1727339431582,-700.0,0.000121,4]
[339210827,1727339431592,-150.45,0.000122,2]
[339210828,1727339431603,-1000.0,0.000122,4]
[339210829,1727339431614,-171.92515694,0.000123,4]
[339210830,1727339431627,-1028.07484306,0.000123,4]
[339210831,1727339431638,-200.0,0.000124,4]
[339210832,1727339431648,-168.57,0.00012445,2]
[339210833,1727339431659,-200.0,0.000125,4]
[339210834,1727339431669,-200.0,0.000126,4]
[339210835,1727339431680,-200.0,0.000127,4]
[339210836,1727339431690,-180.0,0.00012714,2]
[339210837,1727339431700,-150.0,0.00012744,2]
[339210838,1727339431710,-700.0,0.000128,4]
[339210839,1727339431719,-334.72690774,0.000128,2]
[339210840,1727339431729,-184.302,0.00012895,2]
[339210841,1727339431738,-894.02060119,0.00012895,2]
[339210858,1727339437642,-151.98948051,0.000128,2]
[339210859,1727339437652,-960.59094941,0.00012895,2]
[339210860,1727339437662,-319.85410692,0.00012895,2]
[339210861,1727339437672,-321.3117075,0.00012895,2]
[339210862,1727339437682,-14565.1407365,0.00012895,2]
[339210863,1727339437692,-15526.09365752,0.00012899,2]
[339210864,1727339437752,-691.69526512,0.00012899,2]
[339210865,1727339437809,-427.20419193,0.00012899,2]
[339210888,1727339439380,-9496.23710725,0.00012899,2]
[339210889,1727339439390,-114448.05234157,0.000129,2]
[339210890,1727339439399,-8955.83492573,0.000129,2]
[339210891,1727339439409,-192379.51998671,0.000129,2]
[339210892,1727339439420,-20721.79715862,0.000129,2]
[339210893,1727339439544,-1658.49536522,0.000129,2]
[339210894,1727339439556,-2617.4975141,0.000129,2]
[339210895,1727339439567,-455.67,0.000129,2]
[339210899,1727339442663,-169272.30430402,0.000129,2]
[339211046,1727339445667,-419893.56544122,0.000129,2]
[339211047,1727339445676,-156.38900573,0.000129,2]
[339211048,1727339445686,-156.38900573,0.000129,2]
[339211049,1727339445696,-156.38900573,0.000129,2]
[339211050,1727339445706,-156.88,0.000129,2]
[339211051,1727339445716,-4026.86,0.000129,2]
[339211052,1727339445726,-30775.22812097,0.000129,2]
[339211053,1727339445776,-1452.92673796,0.000129,2]
[339211054,1727339487964,435.3,0.00010014,2]
[339211055,1727339610787,150.0,0.00014507,120]
[339211057,1727339675369,2577.01985123,0.00021,60]
[339211058,1727339891885,1050.0,0.00011,2]
[339211059,1727339910770,150.0,0.00016035,120]
[339211060,1727339970838,150.0,0.00017367,120]
[339211061,1727340027021,413.53,9.961e-05,2]
[339211062,1727340057227,150.0,0.0001389,30]
[339211067,1727340369496,283.97,0.00010959,2]
[339211068,1727340390954,150.0,0.00014209,120]
[339211069,1727340450829,150.0,0.0001657,120]
[339211070,1727340459972,154.56431321,0.0001,2]
[339211072,1727340510780,150.0,0.00020964,120]
[339211074,1727340612394,150.0,0.0001389,30]
[339211080,1727340631542,-203.96,0.00011867,2]
[339211081,1727340631551,-340.61707993,0.00011872,2]
[339211082,1727340631566,-418.54007673,0.00011872,2]
[339211083,1727340631680,-240.84284334,0.00011872,2]
[339211084,1727340631690,-250.0,0.00011872,2]
[339211085,1727340631700,-55.86547157,0.00011882,2]
[339211086,1727340631766,-129.72452843,0.00011882,2]
[339211087,1727340631776,-203.35,0.00011883,2]
[339211088,1727340631785,-177.85,0.0001189,2]
[339211089,1727340631795,-413.53,0.00012225,2]
[339211090,1727340631804,-158.09,0.00012445,2]
[339211091,1727340631814,-544.41794528,0.00012755,2]
[339211092,1727340631823,-150.0,0.00012767,2]
[339211093,1727340631832,-150.0,0.00012782,2]
[339211094,1727340631842,-499.99,0.00012782,2]
[339211095,1727340631852,-500.0,0.00012797,2]
[339211096,1727340631863,-150.0,0.00012799,2]
[339211097,1727340631874,-294.88517851,0.00012799,2]
[339211098,1727340631884,-3016.55182492,0.00012799,2]
[339211099,1727340631894,-150.0,0.00012799,2]
[339211100,1727340631903,-1000.0,0.000128,2]
[339211101,1727340631913,-330.172,0.000128,2]
[339211102,1727340631922,-1515.0074,0.000128,2]
[339211103,1727340631933,-612.6842302,0.000128,2]
[339211104,1727340631943,-7500.0,0.000128,2]
[339211105,1727340631953,-33750.55135354,0.000128,2]
[339211106,1727340631964,-179.91941837,0.000128,2]
[339211107,1727340631974,-488.63260276,0.000128,2]
[339211108,1727340631985,-2379.91505313,0.000128,2]
[339211109,1727340631994,-150.0,0.00012837,2]
[339211110,1727340632004,-150.0,0.00012838,2]
[339211111,1727340632015,-150.0,0.00012838,2]
[339211112,1727340632027,-150.0,0.00012857,2]
[339211113,1727340632037,-150.0,0.00012861,2]
[339211114,1727340632047,-500.0,0.00012873,2]
[339211115,1727340632057,-500.0,0.00012873,2]
[339211116,1727340632066,-500.0,0.00012873,2]
[339211117,1727340632076,-1016.9476,0.00012877,2]
[339211118,1727340632086,-150.0,0.00012883,2]
[339211119,1727340632095,-184.30239477,0.00012884,2]
[339211120,1727340632105,-208.07261695,0.00012885,2]
[339211121,1727340632115,-150.0,0.00012889,2]
[339211122,1727340632126,-153.0,0.0001289,2]
[339211123,1727340632136,-153.0,0.0001289,2]
[339211124,1727340632146,-915.3189204,0.00012895,2]
[339211125,1727340632155,-10054.094842,0.00012895,2]
[339211126,1727340632165,-2269.5259697,0.00012895,2]
[339211127,1727340632173,-187.0231051,0.00012895,2]
[339211128,1727340632183,-553.5678241,0.00012895,2]
[339211129,1727340632192,-500.0,0.00012899,2]
[339211130,1727340632201,-500.0,0.00012899,2]
[339211131,1727340632211,-500.0,0.00012899,2]
[339211132,1727340632220,-500.0,0.00012899,2]
[339211133,1727340632231,-500.0,0.00012899,2]
[339211134,1727340632241,-500.0,0.00012899,2]
[339211135,1727340632253,-256.33770822,0.00012899,2]
[339211136,1727340632266,-190.58332312,0.00012899,2]
[339211137,1727340632276,-300.02,0.00012899,2]
[339211138,1727340632287,-148710.52307793,0.000129,2]
[339211139,1727340632298,-7164.66794058,0.000129,2]
[339211140,1727340632309,-389522.26657491,0.000129,2]
[339211141,1727340632321,-289.77504938,0.000129,2]
[339211145,1727340637787,-1000.0,0.000128,2]
[339211146,1727340637798,-786.769328,0.00012895,2]
[339211147,1727340637808,-926.40238502,0.000129,2]
[339211148,1727340637827,-3510.72,0.000129,2]
[339211149,1727340637839,-12294.39456971,0.000129,2]
[339211150,1727340638029,-1000.55839258,0.000129,2]
[339211151,1727340638043,-1700.51020281,0.000129,2]
[339211152,1727340638054,-5956.54497692,0.000129,2]
[339211153,1727340638152,-333983.74248934,0.000129,2]
[339211183,1727340642689,-653.44587086,0.000129,2]
[339211184,1727340642742,-427.18428536,0.000129,2]
[339211185,1727340642755,-537.88,0.000129,2]
[339211186,1727340642767,-935.05871083,0.000129,2]
[339211187,1727340642851,-7993.45022661,0.000129,2]
[339211188,1727340642907,-1255.06367634,0.000129,2]
[339211194,1727340688441,372.17,0.00010052,2]
[339211195,1727340690812,150.0,0.00015494,120]
[339211196,1727340870774,150.0,0.00019875,120]
[339211197,1727340909035,211.43,0.00010959,2]
[339211203,1727341110786,150.0,0.0001543,120]
[339211205,1727341211147,150.0,0.0001389,30]
[339211206,1727341230763,150.0,0.0001493,120]
[339211207,1727341272650,353.56,9.697e-05,2]
[339211212,1727341581115,161.85,0.00010959,2]
[339211213,1727341699788,1050.0,0.00011,2]
[339211214,1727341756523,150.0,0.0001389,30]
[339211223,1727341827321,335.88,9.613e-05,2]
[339211254,1727341831917,-162.68,0.00011532,2]
[339211256,1727341831927,-250.0,0.00011576,2]
[339211258,1727341831936,-877.45818035,0.00011576,5]
[339211259,1727341831945,-1000.0,0.00011614,2]
[339211260,1727341831954,-320.17,0.00011614,2]
[339211261,1727341831963,-56.69181961,0.00011877,2]
[339211262,1727341831975,-279.18818039,0.00011877,2]
[339211263,1727341831984,-151.51,0.00011921,2]
[339211264,1727341831993,-151.55,0.00011924,2]
[339211265,1727341832003,-151.51,0.00011927,2]
[339211266,1727341832013,-151.51,0.00011932,2]
[339211267,1727341832022,-151.51,0.00011938,2]
[339211268,1727341832031,-151.51,0.00011943,2]
[339211269,1727341832040,-151.51,0.00011948,2]
[339211270,1727341832050,-151.51,0.00011954,2]
[339211271,1727341832059,-151.51,0.00011959,2]
[339211272,1727341832068,-151.51,0.00011965,2]
[339211273,1727341832077,-151.51,0.0001197,2]
[339211274,1727341832086,-151.51,0.00011976,2]
[339211275,1727341832095,-151.51,0.00011981,2]
[339211276,1727341832104,-128.80126968,0.00012741,2]
[339211277,1727341832116,-51.19873032,0.00012741,2]
[339211278,1727341832125,-150.0,0.00012766,2]
[339211279,1727341832135,-185.71939874,0.000128,2]
[339211280,1727341832144,-217.84328184,0.000128,2]
[339211281,1727341832153,-150.0,0.00012813,2]
[339211282,1727341832163,-150.0,0.00012818,2]
[339211283,1727341832172,-500.0,0.00012873,2]
[339211284,1727341832181,-150.0,0.00012891,2]
[339211285,1727341832191,-355.0,0.00012891,2]
[339211286,1727341832200,-5717.2168607,0.00012895,2]
[339211287,1727341832209,-286.7878388,0.00012895,2]
[339211288,1727341832218,-767.3653596,0.00012895,2]
[339211289,1727341832228,-1000.0,0.00012899,2]
[339211290,1727341832237,-103236.86853003,0.000129,2]
[339211291,1727341832252,-16850.82751088,0.000129,2]
[339211294,1727341838087,-53320.62730034,0.000129,2]
[339211295,1727341838097,-5731.73435247,0.000129,2]
[339211296,1727341838107,-1871.0,0.000129,2]
[339211297,1727341838116,-371762.80981755,0.000129,2]
[339211298,1727341838229,-319.32,0.000129,2]
[339211299,1727341838285,-3268.25711759,0.000129,2]
[339211300,1727341838295,-4483.04695948,0.000129,2]
[339211301,1727341838306,-55890.61286815,0.000129,2]
[339211302,1727341838318,-3035.97123007,0.000129,2]
[339211303,1727341838330,-1000.70001024,0.000129,2]
[339211304,1727341839313,-71409.90778122,0.000129,2]
[339211307,1727341839787,-267.12330636,0.000129,2]
[339211308,1727341839956,-6398.0706,0.000129,2]
[339211309,1727341839968,-20106.592846,0.000129,2]
[339211310,1727341840016,-415.1,0.000129,2]
[339211312,1727341842797,-6336.94334604,0.000129,2]
[339211313,1727341842853,-1327.18930084,0.000129,2]
[339211314,1727341842866,-640.224,0.000129,2]
[339211315,1727341842878,-2126.874996,0.000129,2]
[339211316,1727341842889,-296.13443335,0.000129,2]
[339211317,1727341842901,-357610.5441278,0.000129,2]
[339211318,1727341842917,-2867.96155421,0.000129,2]
[339211319,1727341842928,-707.3898016,0.000129,2]
[339211320,1727341842970,-1732.88242047,0.000129,2]
[339211321,1727341843031,-5626.523833,0.000129,2]
[339211322,1727341843042,-3419.92800955,0.000129,2]
[339211323,1727341843052,-9493.0405304,0.000129,2]
[339211324,1727341843063,-604.07802196,0.000129,2]
[339211325,1727341843075,-767.00700092,0.000129,2]
[339211326,1727341843085,-394.58101345,0.000129,2]
[339211327,1727341843096,-2421.6,0.000129,2]
[339211328,1727341843107,-5181.3955544,0.000129,2]
[339211329,1727341843141,-430.65367495,0.000129,2]
[339211330,1727341843152,-369.79124263,0.000129,2]
[339211331,1727341843163,-3079.99995,0.000129,2]
[339211332,1727341845733,-12589.80803397,0.000129,2]
[339211333,1727341845795,-4983.1836386,0.000129,2]
[339211334,1727341845851,-7665.96605024,0.000129,2]
[339211335,1727341845908,-67555.08890951,0.000129,2]
[339211336,1727341845920,-6396.39000001,0.000129,2]
[339211337,1727341845965,-437.57170826,0.000129,2]
[339211338,1727342020790,500.0,0.00021,60]
[339211339,1727342021205,500.0,0.00021,60]
[339211340,1727342021465,500.0,0.00021,60]
[339211341,1727342021742,500.0,0.00021,60]
[339211342,1727342022047,500.0,0.00021,60]
[339211343,1727342022299,500.0,0.00021,60]
[339211344,1727342022584,500.0,0.00021,60]
[339211345,1727342022865,500.0,0.00021,60]
[339211346,1727342023116,500.0,0.00021,60]
[339211347,1727342023397,500.0,0.00021,60]
[339211348,1727342023708,500.0,0.00021,60]
[339211349,1727342024005,500.0,0.00021,60]
[339211350,1727342024310,500.0,0.00021,60]
[339211351,1727342024613,500.0,0.00021,60]
[339211352,1727342025213,500.0,0.00021,60]
[339211353,1727342025510,500.0,0.00021,60]
[339211354,1727342025985,500.0,0.00021,60]
[339211355,1727342026268,500.0,0.00021,60]
[339211356,1727342026513,500.0,0.00021,60]
[339211357,1727342026842,269.3397856,0.00021,60]
[339211358,1727342030809,500.0,0.00021,60]
[339211359,1727342031087,500.0,0.00021,60]
[339211360,1727342031378,500.0,0.00021,60]
[339211361,1727342031653,515.66801701,0.00021,60]
[339211362,1727342062830,500.0,0.00021,60]
[339211363,1727342063123,500.0,0.00021,60]
[339211364,1727342063385,500.0,0.00021,60]
[339211365,1727342063655,500.0,0.00021,60]
[339211366,1727342063960,500.0,0.00021,60]
[339211367,1727342064233,500.0,0.00021,60]
[339211368,1727342064575,500.0,0.00021,60]
[339211369,1727342064848,313.20955541,0.00021,60]
[339211370,1727342106044,154.26,0.00010959,2]
[339211371,1727342118188,1000.0,0.00021,60]
[339211372,1727342124492,558.7,0.00021,60]
[339211412,1727342308405,1000.0,0.00021,60]
[339211417,1727342339702,5000.0,0.00021,60]
[339211421,1727342367891,150.0,0.0001389,30]
[339211423,1727342377007,500.0,0.00021,60]
[339211424,1727342377429,500.0,0.00021,60]
[339211425,1727342377583,500.0,0.00021,60]
[339211426,1727342377834,500.0,0.00021,60]
[339211427,1727342378101,500.0,0.00021,60]
[339211428,1727342378400,500.0,0.00021,60]
[339211429,1727342379057,153.42196876,0.00021,60]
[339211432,1727342381667,500.0,0.00021,60]
[339211433,1727342381939,500.0,0.00021,60]
[339211434,1727342382218,500.0,0.00021,60]
[339211435,1727342382472,500.0,0.00021,60]
[339211436,1727342382738,500.0,0.00021,60]
[339211437,1727342382998,500.0,0.00021,60]
[339211438,1727342383313,500.0,0.00021,60]
[339211439,1727342383588,500.0,0.00021,60]
[339211440,1727342383846,500.0,0.00021,60]
[339211441,1727342384132,430.60326502,0.00021,60]
[339211442,1727342386274,500.0,0.00021,60]
[339211443,1727342386542,500.0,0.00021,60]
[339211444,1727342386826,500.0,0.00021,60]
[339211445,1727342387072,500.0,0.00021,60]
[339211446,1727342387325,500.0,0.00021,60]
[339211447,1727342387762,500.0,0.00021,60]
[339211448,1727342387920,245.86120077,0.00021,60]
[339211450,1727342410910,500.0,0.00021,60]
[339211451,1727342411187,500.0,0.00021,60]
[339211452,1727342411450,500.0,0.00021,60]